bitfinex/quotes_BTCUSD_20240611
["timestamp","ask_amount","ask_price","bid_price","bid_amount"]
[1718069287224,1.02610401,69404.0,69403.0,1.41637771]
[1718069288413,1.02610401,69404.0,69403.0,1.25467583]
[1718069290541,1.02610401,69404.0,69403.0,1.25468413]
[1718069298767,1.02610401,69404.0,69403.0,1.19198413]
[1718069298947,1.02610401,69404.0,69403.0,1.25468413]
[1718069301644,1.02610401,69404.0,69403.0,1.14264685]
[1718069318444,0.79600401,69404.0,69403.0,0.79177585]
[1718069318664,1.03320401,69404.0,69403.0,0.79177585]
[1718069318892,1.04320401,69404.0,69403.0,0.9840527]
[1718069319117,1.04320401,69404.0,69403.0,0.85447585]
[1718069319930,1.03320401,69404.0,69403.0,0.85447585]
[1718069320693,1.04320401,69404.0,69403.0,0.85447585]
[1718069320887,1.03320401,69404.0,69403.0,0.85447585]
[1718069321715,1.04320401,69404.0,69403.0,0.85447585]
[1718069321924,1.03320401,69404.0,69403.0,0.85447585]
[1718069322930,1.04320401,69404.0,69403.0,0.85447585]
[1718069323104,1.04320401,69404.0,69403.0,0.83051477]
[1718069323307,1.04320401,69404.0,69403.0,0.33532384]
[1718069324328,1.04320401,69404.0,69403.0,0.42168154]
[1718069325526,1.04320401,69404.0,69403.0,0.42068154]
[1718069326356,1.04320401,69404.0,69403.0,0.33532384]
[1718069326748,1.04320401,69404.0,69403.0,0.42168154]
[1718069328595,1.04320401,69404.0,69403.0,0.42164249]
[1718069328791,1.04320401,69404.0,69403.0,0.33532384]
[1718069330450,1.04320401,69404.0,69403.0,0.42163203]
[1718069331632,1.04320401,69404.0,69403.0,0.42063203]
[1718069332097,1.04320401,69404.0,69403.0,0.42163203]
[1718069333437,1.04320401,69404.0,69403.0,0.33532384]
[1718069335796,1.04320401,69404.0,69403.0,0.42163203]
[1718069336476,1.04320401,69404.0,69403.0,0.33532384]
[1718069336903,1.04320401,69404.0,69403.0,0.42161248]
[1718069337234,1.04320401,69404.0,69403.0,0.33532384]
[1718069338932,1.04320401,69404.0,69403.0,0.33495628]
[1718069340589,1.04320401,69404.0,69403.0,0.42124274]
[1718069340796,1.04320401,69404.0,69403.0,0.33495628]
[1718069341039,1.04320401,69404.0,69403.0,0.44285459]
[1718069348326,1.04320401,69404.0,69403.0,0.33495628]
[1718069350073,1.03320401,69404.0,69403.0,0.62312728]
[1718069350323,0.79600401,69404.0,69403.0,1.00284721]
[1718069350518,0.79600401,69404.0,69403.0,0.87220419]
[1718069355229,0.79600401,69404.0,69403.0,0.93490419]
[1718069356919,0.79600401,69404.0,69403.0,0.87220419]
[1718069357120,0.79600401,69404.0,69403.0,0.93490419]
[1718069360279,0.79600401,69404.0,69403.0,0.87220419]
[1718069360476,0.79600401,69404.0,69403.0,1.06438217]
[1718069361457,0.79600401,69404.0,69403.0,1.04930025]
[1718069361668,0.79600401,69404.0,69403.0,1.06440746]
[1718069361865,0.7772,69404.0,69403.0,1.38987846]
[1718069362075,0.53833567,69404.0,69403.0,1.66620239]
[1718069362490,0.53833567,69404.0,69403.0,1.85741143]
[1718069362939,0.53833567,69404.0,69403.0,1.85641143]
[1718069363356,0.53833567,69404.0,69403.0,1.85741143]
[1718069363785,0.53833567,69404.0,69403.0,1.79371143]
[1718069364080,0.53833567,69404.0,69403.0,1.85641143]
[1718069364284,0.53833567,69404.0,69403.0,1.66620239]
[1718069364413,0.53833567,69404.0,69403.0,1.85741143]
[1718069364614,0.53833567,69404.0,69403.0,1.66620239]
[1718069364838,0.53833567,69404.0,69403.0,1.85741143]
[1718069365203,0.53833567,69404.0,69403.0,1.66620239]
[1718069365619,0.53833567,69404.0,69403.0,1.47888239]
[1718069368910,0.73833567,69404.0,69403.0,1.41618239]
[1718069369113,0.73833567,69404.0,69403.0,1.47888239]
[1718069370700,0.73833567,69404.0,69403.0,1.47788239]
[1718069370904,0.53833567,69404.0,69403.0,1.47788239]
[1718069372316,0.73833567,69404.0,69403.0,1.47788239]
[1718069373249,0.53833567,69404.0,69403.0,1.47788239]
[1718069374798,0.73833567,69404.0,69403.0,1.41518239]
[1718069375031,0.73833567,69404.0,69403.0,1.24128239]
[1718069375235,0.75713968,69404.0,69403.0,1.24128239]
[1718069375474,0.73833567,69404.0,69403.0,1.24128239]
[1718069381123,0.73833567,69404.0,69403.0,1.24222839]
[1718069386127,0.73833567,69404.0,69403.0,1.17952839]
[1718069386347,0.73833567,69404.0,69403.0,1.24222839]
[1718069389524,0.53833567,69404.0,69403.0,1.24222839]
[1718069389893,0.73833567,69404.0,69403.0,1.24222839]
[1718069390548,0.53833567,69404.0,69403.0,1.24222839]
[1718069390713,0.73833567,69404.0,69403.0,1.24222839]
[1718069395541,0.53833567,69404.0,69403.0,1.24222839]
[1718069397695,0.73833567,69404.0,69403.0,1.24222839]
[1718069398871,0.75713968,69404.0,69403.0,1.24222839]
[1718069399552,0.73833567,69404.0,69403.0,1.24222839]
[1718069400295,0.73833567,69404.0,69403.0,1.14222839]
[1718069400499,0.75713968,69404.0,69403.0,1.14222839]
[1718069401123,0.73833567,69404.0,69403.0,1.14222839]
[1718069401868,0.75713968,69404.0,69403.0,1.14222839]
[1718069404091,0.75713968,69404.0,69403.0,1.07952839]
[1718069404334,0.75713968,69404.0,69403.0,1.14222839]
[1718069404966,0.73833567,69404.0,69403.0,1.14222839]
[1718069406930,0.75713968,69404.0,69403.0,1.14222839]
[1718069407563,0.75713968,69404.0,69403.0,1.33354113]
[1718069407773,0.75713968,69404.0,69403.0,1.14222839]
[1718069409088,0.73833567,69404.0,69403.0,1.14222839]
[1718069409536,0.73833567,69404.0,69403.0,1.33356832]
[1718069410000,0.73833567,69404.0,69403.0,1.33356101]
[1718069410419,0.75713968,69404.0,69403.0,1.07952839]
[1718069410626,0.73833567,69404.0,69403.0,1.14222839]
[1718069410958,0.75713968,69404.0,69403.0,1.14222839]
[1718069411159,0.73833567,69404.0,69403.0,1.14222839]
[1718069411763,0.53833567,69404.0,69403.0,1.14222839]
[1718069411962,0.73833567,69404.0,69403.0,1.14222839]
[1718069416000,0.53833567,69404.0,69403.0,1.24222839]
[1718069416460,0.73833567,69404.0,69403.0,1.24222839]
[1718069417092,0.53833567,69404.0,69403.0,1.24222839]
[1718069420719,0.73833567,69404.0,69403.0,1.24222839]
[1718069426040,0.73833567,69404.0,69403.0,1.43354979]
[1718069426962,0.73833567,69404.0,69403.0,1.24222839]
[1718069428725,0.43518405,69404.0,69403.0,1.24222839]
[1718069428927,0.26491755,69404.0,69403.0,2.23539538]
[1718069429260,0.2,69419.0,69418.0,0.532163]
[1718069429468,0.2,69419.0,69418.0,0.80043991]
[1718069429682,0.2,69424.0,69423.0,0.1]
[1718069429892,0.2,69425.0,69424.0,0.532126]
[1718069430110,0.1595,69425.0,69424.0,1.15118691]
[1718069430328,0.1595,69425.0,69424.0,1.1662588]
[1718069430535,0.1595,69425.0,69424.0,1.16617052]
[1718069431019,0.3595,69425.0,69424.0,1.16617052]
[1718069431488,0.3595,69425.0,69424.0,1.23264828]
[1718069431758,0.3595,69425.0,69424.0,1.29534828]
[1718069432196,0.4366,69425.0,69424.0,1.29534828]
[1718069432441,0.4366,69425.0,69424.0,1.1660466]
[1718069432917,0.45540401,69425.0,69424.0,1.1660466]
[1718069433119,0.45540401,69425.0,69424.0,0.7154748]
[1718069433325,0.45540401,69425.0,69424.0,0.79130562]
[1718069433539,0.45540401,69425.0,69424.0,0.85400562]
[1718069435693,0.45540401,69425.0,69424.0,0.79130562]
[1718069436107,0.45540401,69425.0,69424.0,0.85400562]
[1718069438883,0.45540401,69425.0,69424.0,0.96161543]
[1718069442018,0.45540401,69425.0,69424.0,0.85400562]
[1718069446569,0.45540401,69425.0,69424.0,0.94099923]
[1718069446782,0.45540401,69425.0,69424.0,0.85495162]
[1718069447036,0.45626401,69425.0,69424.0,0.85495162]
[1718069450348,0.45626401,69425.0,69424.0,0.94097976]
[1718069450733,0.45626401,69425.0,69424.0,0.85495162]
[1718069451164,0.45626401,69425.0,69424.0,0.91255462]
[1718069452822,0.45626401,69425.0,69424.0,0.99858276]
[1718069454142,0.45626401,69425.0,69424.0,0.91255462]
[1718069454353,0.45626401,69425.0,69424.0,0.99859266]
[1718069457213,0.45626401,69425.0,69424.0,0.91255462]
[1718069458034,0.45626401,69425.0,69424.0,0.99861364]
[1718069458643,0.45626401,69425.0,69424.0,0.91255462]
[1718069461462,0.45626401,69425.0,69424.0,0.93647914]
[1718069462183,0.45626401,69425.0,69424.0,1.04402669]
[1718069462600,0.45626401,69425.0,69424.0,0.93647914]
[1718069465277,0.45626401,69425.0,69424.0,1.04402669]
[1718069465941,0.43746,69425.0,69424.0,1.04402669]
[1718069466354,0.20086,69425.0,69424.0,1.04402669]
[1718069467188,0.21966401,69425.0,69424.0,1.04402669]
[1718069467386,0.20086,69425.0,69424.0,0.93647914]
[1718069468887,0.21966401,69425.0,69424.0,0.87377914]
[1718069469152,0.21966401,69425.0,69424.0,0.93647914]
[1718069474297,0.21966401,69425.0,69424.0,1.0655362]
[1718069475179,0.21966401,69425.0,69424.0,0.93647914]
[1718069482643,0.21966401,69425.0,69424.0,0.87377914]
[1718069483055,0.21966401,69425.0,69424.0,0.93647914]
[1718069485439,0.21966401,69425.0,69424.0,1.01907914]
[1718069485440,0.20086,69425.0,69424.0,1.01907914]
[1718069485653,0.20086,69425.0,69424.0,1.22456314]
[1718069485853,0.20086,69425.0,69424.0,1.46236314]
[1718069490129,0.21966401,69425.0,69424.0,1.30716314]
[1718069490334,0.21966401,69425.0,69424.0,1.22456314]
[1718069494516,0.21966401,69425.0,69424.0,1.16186314]
[1718069494728,0.21966401,69425.0,69424.0,1.22456314]
[1718069502703,0.20086,69425.0,69424.0,1.22456314]
[1718069515915,0.0817,69443.0,69428.0,0.0997878]
[1718069516076,0.07215996,69463.0,69444.0,0.0997878]
[1718069516077,0.3544,69446.0,69444.0,0.0997878]
[1718069516311,0.2,69446.0,69445.0,0.45080573]
[1718069516544,0.2,69446.0,69445.0,0.58850181]
[1718069517177,0.2,69446.0,69445.0,0.87649881]
[1718069518414,0.21880401,69446.0,69445.0,0.81379881]
[1718069518788,0.21880401,69446.0,69445.0,0.87649881]
[1718069519001,0.45570401,69446.0,69445.0,0.77671101]
[1718069519454,0.45570401,69446.0,69445.0,0.75279819]
[1718069519631,0.45570401,69446.0,69445.0,0.85258599]
[1718069519825,0.45570401,69446.0,69445.0,0.69009819]
[1718069520028,0.45570401,69446.0,69445.0,0.75279819]
[1718069520346,0.45570401,69446.0,69445.0,0.69009819]
[1718069520555,0.45570401,69446.0,69445.0,0.75279819]
[1718069521851,0.45570401,69446.0,69445.0,0.40210119]
[1718069522054,0.45570401,69446.0,69445.0,0.57232869]
[1718069522478,0.46570401,69446.0,69445.0,0.25778126]
[1718069523538,0.45570401,69446.0,69445.0,0.25778126]
[1718069523959,0.45570401,69446.0,69445.0,0.44512111]
[1718069526079,0.44570401,69446.0,69445.0,0.44512111]
[1718069526460,0.44570401,69446.0,69445.0,0.43133785]
[1718069526672,0.44570401,69446.0,69445.0,0.44509305]
[1718069527148,0.44570401,69446.0,69445.0,0.40207313]
[1718069527287,0.44570401,69446.0,69445.0,0.44507693]
[1718069528613,0.44570401,69446.0,69445.0,0.40207313]
[1718069532071,0.45570401,69446.0,69445.0,0.40207313]
[1718069532486,0.45570401,69446.0,69445.0,0.45966513]
[1718069536798,0.44570401,69446.0,69445.0,0.45966513]
[1718069538834,0.45570401,69446.0,69445.0,0.3153452]
[1718069539453,0.45570401,69446.0,69445.0,0.2577532]
[1718069543712,1.03169401,69446.0,69445.0,0.2577532]
[1718069544045,1.03169401,69446.0,69445.0,0.2586992]
[1718069544475,1.03255401,69446.0,69445.0,0.2586992]
[1718069545896,1.23276621,69446.0,69445.0,0.2586992]
[1718069546312,1.23276621,69446.0,69445.0,0.244944]
[1718069546532,1.23276621,69446.0,69445.0,0.100946]
[1718069546739,1.23276621,69446.0,69445.0,0.01466719]
[1718069546964,1.23276621,69446.0,69445.0,0.000946]
[1718069555476,1.29546621,69446.0,69445.0,0.000946]
[1718069559316,1.33035769,69446.0,69445.0,0.000946]
[1718069559700,1.29546621,69446.0,69445.0,0.000946]
[1718069561764,1.23276621,69446.0,69445.0,0.000946]
[1718069562068,1.29546621,69446.0,69445.0,0.000946]
[1718069567400,1.23276621,69446.0,69445.0,0.000946]
[1718069567559,1.29546621,69446.0,69445.0,0.000946]
[1718069574027,1.23276621,69446.0,69445.0,0.000946]
[1718069574229,1.29546621,69446.0,69445.0,0.000946]
[1718069576676,1.58378214,69446.0,69445.0,0.000946]
[1718069577411,1.72810207,69446.0,69445.0,0.000946]
[1718069578432,1.58378214,69446.0,69445.0,0.000946]
[1718069581615,1.93528214,69446.0,69445.0,0.000946]
[1718069581830,2.37711664,69446.0,69445.0,0.000946]
[1718069582057,2.40013074,69446.0,69445.0,0.000946]
[1718069582286,2.4001298,69446.0,69445.0,0.000946]
[1718069582513,2.50134775,69446.0,69445.0,0.000946]
[1718069582973,2.90922174,69446.0,69445.0,0.000946]
[1718069583223,2.59012333,69446.0,69445.0,0.000946]
[1718069583522,2.50434775,69446.0,69445.0,0.000946]
[1718069583930,2.50134775,69446.0,69445.0,0.000946]
[1718069584111,2.51434775,69446.0,69445.0,0.000946]
[1718069584324,2.57898523,69446.0,69445.0,0.000946]
[1718069584976,2.56598523,69446.0,69445.0,0.000946]
[1718069586279,2.50134775,69446.0,69445.0,0.000946]
[1718069586488,2.52934775,69446.0,69445.0,0.000946]
[1718069586916,2.51534775,69446.0,69445.0,0.000946]
[1718069587126,2.52934775,69446.0,69445.0,0.000946]
[1718069590904,2.91734075,69446.0,69445.0,0.000946]
[1718069591141,2.91734075,69446.0,69424.0,0.000946]
[1718069591142,0.41901621,69425.0,69424.0,0.000946]
[1718069591306,0.56211621,69425.0,69424.0,0.000946]
[1718069591508,1.20174621,69425.0,69424.0,0.000946]
[1718069591770,1.43794621,69425.0,69424.0,0.0147788]
[1718069591959,1.43794621,69425.0,69424.0,0.000946]
[1718069596091,1.37524621,69425.0,69424.0,0.000946]
[1718069596317,1.43794621,69425.0,69424.0,0.000946]
[1718069598682,1.37524621,69425.0,69424.0,0.000946]
[1718069598884,1.43794621,69425.0,69424.0,0.000946]
[1718069609284,1.37524621,69425.0,69424.0,0.000946]
[1718069609504,1.43794621,69425.0,69424.0,0.000946]
[1718069622287,1.37524621,69425.0,69424.0,0.000946]
[1718069622531,1.43794621,69425.0,69424.0,0.000946]
[1718069627136,2.07808607,69425.0,69424.0,0.000946]
[1718069627302,2.16573331,69425.0,69424.0,0.000946]
[1718069627496,2.80478155,69425.0,69424.0,0.000946]
[1718069628262,3.09286155,69425.0,69424.0,0.000946]
[1718069628623,3.09986155,69425.0,69424.0,0.000946]
[1718069629030,3.09287151,69425.0,69424.0,0.000946]
[1718069629261,3.09687151,69425.0,69424.0,0.000946]
[1718069629927,3.09425164,69425.0,69424.0,0.000946]
[1718069630313,3.10744428,69425.0,69424.0,0.000946]
[1718069630736,3.10344428,69425.0,69424.0,0.000946]
[1718069630938,3.09344428,69425.0,69424.0,0.000946]
[1718069631902,3.10644428,69425.0,69424.0,0.000946]
[1718069632304,3.02021381,69425.0,69424.0,0.000946]
[1718069632529,3.10645046,69425.0,69424.0,0.000946]
[1718069632744,3.12045046,69425.0,69424.0,0.000946]
[1718069633395,3.1204529,69425.0,69424.0,0.000946]
[1718069633599,3.12045217,69425.0,69424.0,0.000946]
[1718069634234,3.03421318,69425.0,69424.0,0.000946]
[1718069640309,2.34723318,69425.0,69424.0,0.000946]
[1718069640566,2.17433694,69425.0,69424.0,0.000946]
[1718069640819,2.19123094,69425.0,69424.0,0.000946]
[1718069641044,1.78578007,69425.0,69424.0,0.000946]
[1718069646222,1.64146014,69425.0,69424.0,0.000946]
[1718069653852,1.57876014,69425.0,69424.0,0.000946]
[1718069654277,1.64146014,69425.0,69424.0,0.000946]
[1718069658283,0.81179401,69425.0,69424.0,0.144988]
[1718069658485,0.81179401,69425.0,69424.0,0.39241894]
[1718069658714,0.79299,69425.0,69424.0,0.39241894]
[1718069658913,0.81179401,69425.0,69424.0,0.49241894]
[1718069659109,0.78479401,69425.0,69424.0,0.52243669]
[1718069659378,0.78479401,69425.0,69424.0,0.49327189]
[1718069661273,0.78479401,69425.0,69424.0,0.49427189]
[1718069664315,0.78479401,69425.0,69424.0,0.55697189]
[1718069665013,0.78479401,69425.0,69424.0,0.49427189]
[1718069665456,0.78479401,69425.0,69424.0,0.55697189]
[1718069665741,0.78479401,69425.0,69424.0,0.70129182]
[1718069673535,0.79500621,69425.0,69424.0,0.25997189]
[1718069674813,0.79500621,69425.0,69424.0,0.01592989]
[1718069675042,0.99500621,69425.0,69424.0,0.01492989]
[1718069675251,0.79500621,69425.0,69424.0,0.000946]
[1718069675449,0.79500621,69425.0,69424.0,0.001946]
[1718069676319,0.79500621,69425.0,69424.0,0.000946]
[1718069677805,0.79500621,69425.0,69424.0,0.01488197]
[1718069678046,0.79500621,69425.0,69424.0,0.01588197]
[1718069678476,0.79500621,69425.0,69424.0,0.01488197]
[1718069678686,0.79500621,69425.0,69424.0,0.01588197]
[1718069679056,0.79500621,69425.0,69424.0,0.01488197]
[1718069679249,0.78500621,69425.0,69424.0,0.01588197]
[1718069679660,0.79500621,69425.0,69424.0,0.01488197]
[1718069680016,0.79500621,69425.0,69424.0,0.001946]
[1718069681980,0.79500621,69425.0,69424.0,0.000946]
[1718069682403,0.79500621,69425.0,69424.0,0.001946]
[1718069682615,0.79500621,69425.0,69424.0,0.000946]
[1718069683025,0.79500621,69425.0,69424.0,0.001946]
[1718069683231,0.79500621,69425.0,69424.0,0.00142565]
[1718069683480,0.79500621,69425.0,69424.0,0.00042565]
[1718069683718,0.79500621,69425.0,69424.0,0.00142565]
[1718069685084,0.79500621,69425.0,69424.0,0.00042565]
[1718069686169,0.79500621,69425.0,69424.0,0.00142565]
[1718069686382,0.79500621,69425.0,69424.0,0.00042565]
[1718069686796,0.79500621,69425.0,69424.0,0.00142565]
[1718069687007,0.79500621,69425.0,69424.0,0.00042565]
[1718069688705,0.79500621,69425.0,69424.0,0.00142565]
[1718069688916,0.79500621,69425.0,69424.0,0.00042565]
[1718069689346,0.79500621,69425.0,69424.0,0.00142565]
[1718069689549,0.79500621,69425.0,69424.0,0.00042565]
[1718069689909,0.79500621,69425.0,69424.0,0.00142565]
[1718069690114,0.79500621,69425.0,69424.0,0.00042565]
[1718069690564,0.79500621,69425.0,69424.0,0.00142565]
[1718069691876,0.79500621,69425.0,69424.0,0.00042565]
[1718069692423,0.79500621,69425.0,69424.0,0.00142565]
[1718069692645,0.79500621,69425.0,69424.0,0.00042565]
[1718069693093,0.79500621,69425.0,69424.0,0.00142565]
[1718069693265,0.79500621,69425.0,69424.0,0.00042565]
[1718069693747,0.79500621,69425.0,69424.0,0.00142565]
[1718069695104,0.79500621,69425.0,69424.0,0.00042565]
[1718069695525,0.79500621,69425.0,69424.0,0.00142565]
[1718069695763,0.79500621,69425.0,69424.0,0.00042565]
[1718069695980,0.79500621,69425.0,69424.0,0.00142565]
[1718069698366,0.79500621,69425.0,69424.0,0.00042565]
[1718069698569,0.79500621,69425.0,69424.0,0.00142565]
[1718069698986,0.79500621,69425.0,69424.0,0.00042565]
[1718069699418,0.79500621,69425.0,69424.0,0.00142565]
[1718069699638,0.79500621,69425.0,69424.0,0.00042565]
[1718069699845,0.79500621,69425.0,69424.0,0.00142565]
[1718069701669,0.79500621,69425.0,69424.0,0.01536703]
[1718069703188,0.79500621,69425.0,69424.0,0.00142565]
[1718069703605,0.79586621,69425.0,69424.0,0.00142565]
[1718069703839,1.23246621,69425.0,69424.0,0.01539391]
[1718069704249,1.23246621,69425.0,69424.0,0.00142565]
[1718069704250,1.03246621,69425.0,69424.0,0.00142565]
[1718069714746,1.23246621,69425.0,69424.0,0.00142565]
[1718069714951,1.03246621,69425.0,69424.0,0.00142565]
[1718069715567,1.23246621,69425.0,69424.0,0.00142565]
[1718069715807,1.03246621,69425.0,69424.0,0.00142565]
[1718069717963,1.03246621,69425.0,69424.0,0.01540238]
[1718069718196,1.03246621,69425.0,69424.0,0.00142565]
[1718069718398,1.23246621,69425.0,69424.0,0.09009095]
[1718069718613,1.03246621,69425.0,69424.0,0.07611422]
[1718069718829,1.21136621,69425.0,69424.0,0.09009095]
[1718069719035,1.29226621,69425.0,69424.0,0.07611422]
[1718069721801,1.43630621,69425.0,69424.0,0.07611422]
[1718069722254,1.58062614,69425.0,69424.0,0.07611422]
[1718069722961,1.58062614,69425.0,69424.0,0.07511422]
[1718069723183,1.70965489,69425.0,69424.0,0.00142565]
[1718069723406,1.58062614,69425.0,69424.0,0.00142565]
[1718069725467,1.60293579,69425.0,69424.0,0.00142565]
[1718069727593,1.60293579,69425.0,69424.0,0.00042565]
[1718069727838,1.60793579,69425.0,69424.0,0.00142565]
[1718069728083,1.61393579,69425.0,69424.0,0.00142565]
[1718069729154,1.78843579,69425.0,69424.0,0.00142565]
[1718069732924,1.91633414,69425.0,69424.0,0.00142565]
[1718069734016,1.91617124,69425.0,69424.0,0.00142565]
[1718069735862,1.78843579,69425.0,69424.0,0.00142565]
[1718069737081,1.88613373,69425.0,69424.0,0.00142565]
[1718069739358,2.01397924,69425.0,69424.0,0.00142565]
[1718069739786,1.95127924,69425.0,69424.0,0.00142565]
[1718069739986,1.88613373,69425.0,69424.0,0.00142565]
[1718069744484,1.82343373,69425.0,69424.0,0.00142565]
[1718069744684,1.88613373,69425.0,69424.0,0.00142565]
[1718069745241,2.01432897,69425.0,69424.0,0.00142565]
[1718069750568,2.01381439,69425.0,69424.0,0.00142565]
[1718069756908,1.95111439,69425.0,69424.0,0.00142565]
[1718069757111,2.01381439,69425.0,69424.0,0.00142565]
[1718069757781,2.01210596,69425.0,69424.0,0.00142565]
[1718069761727,2.0126406,69425.0,69424.0,0.00142565]
[1718069763671,1.88613373,69425.0,69424.0,0.00142565]
[1718069763867,2.01294418,69425.0,69424.0,0.00142565]
[1718069764331,2.05604088,69425.0,69424.0,0.00142565]
[1718069766285,2.01294418,69425.0,69424.0,0.00142565]
[1718069767197,2.07758924,69425.0,69424.0,0.00142565]
[1718069769458,2.37640332,69425.0,69424.0,0.00142565]
[1718069773002,2.31175826,69425.0,69424.0,0.00142565]
[1718069773267,2.3765335,69425.0,69424.0,0.00142565]
[1718069774964,2.37729934,69425.0,69424.0,0.00142565]
[1718069775384,2.81805964,69425.0,69424.0,0.00142565]
[1718069775828,2.73169062,69425.0,69424.0,0.00142565]
[1718069777684,2.73150932,69425.0,69424.0,0.00142565]
[1718069780971,2.83150932,69425.0,69424.0,0.00142565]
[1718069781395,3.11958932,69425.0,69424.0,0.00142565]
[1718069781542,3.11458932,69425.0,69424.0,0.00042565]
[1718069781740,3.10858932,69425.0,69424.0,0.00042565]
[1718069781971,3.11960022,69425.0,69424.0,0.00142565]
[1718069782171,3.13260022,69425.0,69424.0,0.00142565]
[1718069782840,2.8133885,69425.0,69424.0,0.00142565]
[1718069782988,3.1325998,69425.0,69424.0,0.00142565]
[1718069790228,3.00523911,69425.0,69424.0,0.00142565]
[1718069790432,3.13280049,69425.0,69424.0,0.00142565]
[1718069793393,0.40901621,69405.0,69404.0,0.1543]
[1718069793607,0.62579721,69405.0,69404.0,0.1543]
[1718069793958,1.20178721,69405.0,69404.0,0.17198488]
[1718069794130,1.20178721,69405.0,69404.0,0.1543]
[1718069796609,1.20178721,69405.0,69403.0,0.081346]
[1718069796610,0.41901621,69404.0,69403.0,0.081346]
[1718069797045,0.99500621,69404.0,69403.0,0.081346]
[1718069798127,1.28340914,69404.0,69403.0,0.081346]
[1718069805693,1.34610914,69404.0,69403.0,0.081346]
[1718069809310,1.34610914,69404.0,69403.0,0.15606779]
[1718069809517,1.34610914,69404.0,69403.0,0.081346]
[1718069809723,1.34610914,69404.0,69403.0,0.15606779]
[1718069810720,1.58950914,69404.0,69403.0,0.07566779]
[1718069810916,1.34610914,69404.0,69403.0,0.07566779]
[1718069811113,1.34610914,69404.0,69403.0,0.000946]
[1718069813159,1.34610914,69404.0,69403.0,0.07566784]
[1718069813410,1.49042907,69404.0,69403.0,0.07566784]
[1718069813835,1.93670914,69404.0,69403.0,0.0354693]
[1718069814093,1.93670914,69404.0,69389.0,0.00085027]
[1718069814094,0.41901621,69390.0,69389.0,0.08325027]
[1718069814331,0.56312821,69390.0,69389.0,0.08325027]
[1718069814572,1.13911821,69390.0,69389.0,0.10101543]
[1718069814782,1.13911821,69390.0,69389.0,0.08325027]
[1718069816143,1.14411821,69390.0,69389.0,0.08325027]
[1718069817552,1.29143814,69390.0,69389.0,0.08325027]
[1718069820625,1.35413814,69390.0,69389.0,0.08325027]
[1718069821051,1.29143814,69390.0,69389.0,0.08325027]
[1718069821252,1.35413814,69390.0,69389.0,0.08325027]
[1718069824120,1.09143814,69390.0,69389.0,0.08325027]
[1718069824385,1.00981821,69390.0,69389.0,0.08325027]
[1718069824553,1.20981821,69390.0,69389.0,0.24455027]
[1718069824979,1.20981821,69390.0,69389.0,0.26239929]
[1718069825534,1.00981821,69390.0,69389.0,0.26239929]
[1718069825809,1.20981821,69390.0,69389.0,0.26239929]
[1718069828234,1.00981821,69390.0,69389.0,0.26239929]
[1718069829893,1.00981821,69390.0,69389.0,0.26334529]
[1718069839822,0.94711821,69390.0,69389.0,0.26334529]
[1718069840176,1.00981821,69390.0,69389.0,0.26334529]
[1718069840816,0.86570621,69390.0,69389.0,0.26334529]
[1718069842004,0.86570621,69390.0,69389.0,0.01964529]
[1718069842005,1.31230621,69390.0,69389.0,0.01964529]
[1718069842212,1.31230621,69390.0,69389.0,0.00179627]
[1718069842213,1.45641821,69390.0,69389.0,0.00179627]
[1718069843441,1.60073814,69390.0,69389.0,0.00179627]
[1718069853978,1.74505807,69390.0,69389.0,0.00179627]
[1718069854354,2.29935918,69390.0,69389.0,0.00179627]
[1718069854608,2.25624646,69390.0,69389.0,0.00179627]
[1718069854914,2.2993634,69390.0,69389.0,0.00179627]
[1718069855117,2.30030051,69390.0,69389.0,0.00179627]
[1718069855327,2.32330051,69390.0,69389.0,0.00179627]
[1718069856459,2.28018357,69390.0,69389.0,0.00179627]
[1718069856717,2.60384353,69390.0,69389.0,0.00179627]
[1718069856956,3.69660229,69390.0,69389.0,0.00179627]
[1718069857223,3.28029353,69390.0,69389.0,0.00179627]
[1718069857452,3.58526015,69390.0,69389.0,0.00179627]
[1718069858103,3.58226015,69390.0,69389.0,0.00179627]
[1718069858317,3.47810121,69390.0,69389.0,0.00179627]
[1718069858563,3.58728328,69390.0,69389.0,0.00179627]
[1718069858767,3.58928328,69390.0,69389.0,0.00179627]
[1718069858969,3.57828328,69390.0,69389.0,0.00179627]
[1718069859177,3.59228328,69390.0,69389.0,0.00179627]
[1718069859321,3.60628328,69390.0,69389.0,0.00179627]
[1718069859524,3.57828328,69390.0,69389.0,0.00179627]
[1718069859966,3.59228328,69390.0,69389.0,0.00179627]
[1718069860180,3.57828328,69390.0,69389.0,0.00179627]
[1718069861037,3.59228328,69390.0,69389.0,0.00179627]
[1718069861475,3.57828328,69390.0,69389.0,0.00179627]
[1718069861670,3.57524608,69390.0,69389.0,0.00179627]
[1718069862223,3.58924608,69390.0,69389.0,0.00179627]
[1718069862645,3.30131666,69390.0,69389.0,0.00179627]
[1718069862843,3.60378876,69390.0,69389.0,0.00179627]
[1718069863042,3.71149088,69390.0,69389.0,0.00179627]
[1718069864462,3.60378876,69390.0,69389.0,0.00179627]
[1718069865130,3.71150676,69390.0,69389.0,0.00179627]
[1718069865327,3.60383037,69390.0,69389.0,0.00179627]
[1718069866154,3.62118887,69390.0,69389.0,0.00179627]
[1718069867222,3.62124864,69390.0,69389.0,0.00179627]
[1718069867442,3.70739844,69390.0,69389.0,0.00179627]
[1718069870103,3.70739582,69390.0,69389.0,0.00179627]
[1718069870310,3.62124602,69390.0,69389.0,0.00179627]
[1718069870720,3.62053735,69390.0,69389.0,0.00179627]
[1718069871411,3.62053695,69390.0,69389.0,0.00179627]
[1718069872218,3.31784666,69390.0,69389.0,0.00179627]
[1718069872998,3.31791468,69390.0,69389.0,0.00179627]
[1718069873807,3.62040215,69390.0,69389.0,0.00179627]
[1718069874210,3.31791468,69390.0,69389.0,0.00179627]
[1718069874414,3.01889137,69390.0,69389.0,0.00179627]
[1718069874657,3.31791514,69390.0,69389.0,0.00179627]
[1718069875327,3.31792718,69390.0,69389.0,0.00179627]
[1718069875762,3.38250244,69390.0,69389.0,0.00179627]
[1718069877205,3.38810241,69390.0,69389.0,0.00179627]
[1718069877416,3.32352715,69390.0,69389.0,0.00179627]
[1718069878262,3.62284101,69390.0,69389.0,0.00179627]
[1718069878676,2.76435675,69390.0,69389.0,0.00179627]
[1718069878903,2.29212299,69390.0,69389.0,0.24739627]
[1718069879117,2.29209643,69390.0,69389.0,0.24739627]
[1718069879588,2.17871955,69390.0,69389.0,0.08449627]
[1718069879820,2.29503948,69390.0,69389.0,0.08449627]
[1718069880028,2.30603948,69390.0,69389.0,0.08449627]
[1718069880243,2.29503948,69390.0,69389.0,0.08449627]
[1718069880651,2.04381448,69390.0,69389.0,0.08449627]
[1718069881067,2.04381448,69390.0,69389.0,0.00179627]
[1718069881312,2.05281448,69390.0,69389.0,0.00179627]
[1718069881700,2.04381448,69390.0,69389.0,0.00179627]
[1718069882103,2.05781448,69390.0,69389.0,0.00179627]
[1718069882310,2.04381448,69390.0,69389.0,0.00179627]
[1718069882515,2.05681448,69390.0,69389.0,0.00179627]